Cogmind - Beta 9.6 *** ADVENTURER MODE // 2020.06.03 @ 09:46:14 Player: Haraguro Result: Self-destructed Performance ------------- Evolutions (2) 1000 Regions Visited (3) 600 Robots Destroyed (0) 0 Value Destroyed (0) 0 Prototype IDs (2) 40 Alien Tech Used (0) 0 Bonus (470) 470 TOTAL SCORE: 2110 Bonus ------- Pacifist 470 Cogmind --------- Core Integrity 362/550 Matter 117/300 Energy 100/100 System Corruption 0% Temperature Cool (0) Movement Walking (130) Location -8/Materials Parts ------- > --- POWER (1) -------- (None) > --- PROPULSION (2) --- Titanium Leg Titanium Leg > --- UTILITY (6) ------ Small Storage Unit Weight Redist. System Visual Processing Unit Improved Signal Interpreter > --- WEAPON (2) ------- (None) > --- INVENTORY (6) ---- Compact Wheel Compact Battery (300) Assault Rifle Grenade Launcher Peak State ------------ > --- POWER ------------ Ion Engine > --- PROPULSION ------- Wheel Compact Wheel > --- UTILITY ---------- Small Storage Unit Small Storage Unit Visual Processing Unit Improved Sensor Array Improved Signal Interpreter Shield Generator > --- WEAPON ----------- Small Laser Light Assault Rifle > --- INVENTORY -------- Light Deuterium Engine VTOL Module Compact Battery Weight Redist. System Assault Rifle Grenade Launcher [Rating: 16] Favorites ----------- Power Ion Engine Engine Ion Engine Propulsion Aluminum Leg Leg Aluminum Leg Wheel Compact Wheel Flight Unit VTOL Module Utility Small Storage Unit Device Improved Sensor Array Storage Small Storage Unit Processor Improved Signal Interpreter Weapon Small Laser Energy Gun Small Laser Ballistic Gun Light Assault Rifle Build | -11 -10 -9 -8 ------- Run | Scr Mat Mat Mat Slots Evolved 4 | . . 2 2 Power . | . . . . Propulsion . | . . . . Utility 4 | . . 2 2 Weapon . | . . . . Parts Attached 19 | 6 1 5 7 Power 2 | 1 . . 1 Engine 2 | 1 . . 1 Core . | . . . . Reactor . | . . . . Propulsion 7 | 2 . 2 3 Treads . | . . . . Leg 4 | 2 . . 2 Wheel 2 | . . 2 . Hover . | . . . . Flight 1 | . . . 1 Utility 8 | 1 1 3 3 Device 4 | . . 2 2 Storage 2 | 1 1 . . Processor 2 | . . 1 1 Hackware . | . . . . Protection . | . . . . Artifact . | . . . . Weapon 2 | 2 . . . Energy Gun 1 | 1 . . . Energy Cannon . | . . . . Ballistic Gun 1 | 1 . . . Ballistic Cannon . | . . . . Launcher . | . . . . Special Weapon . | . . . . Impact Weapon . | . . . . Slashing Weapon . | . . . . Piercing Weapon . | . . . . Special Melee Weapon . | . . . . Unidentified Prototypes . | . . . . Parts Lost 6 | . . . 6 Power 2 | . . . 2 Propulsion 2 | . . . 2 Utility 2 | . . . 2 Weapon . | . . . . Highest Loss Streak 3 | . . . 3 Average Slot Usage (%) 92 | . 100 100 75 Engine 10 | . 14 11 9 Leg 15 | . 28 17 5 Wheel 5 | . . 4 9 Device 10 | . . 11 15 Storage 20 | . 28 22 14 Processor 11 | . . 11 18 Energy Gun 8 | . 14 11 1 Ballistic Gun 8 | . 14 11 1 Naked Turns . | . . . . Heaviest Build 18 | 11 15 17 18 Greatest Support 40 | 20 20 26 40 Greatest Overweight (x) 2 | 2 . . 1 Average Overweight (x) . | . . . . Largest Inventory Capacity 8 | 6 8 8 8 Average Capacity 7 | 5 7 8 7 Most Carried 8 | 4 8 8 7 Average Carried 6 | 1 5 7 5 Final Capacity 8 | 6 8 8 6 Final Carried 8 | 4 8 8 4 Class Distribution -------------------- 95% | Mutant 4% | Skirmisher Dominant Class ---------------- Mutant | -10/Materials Mutant | -9/Materials Mutant | -8/Materials Resources | -11 -10 -9 -8 ----------- Run | Scr Mat Mat Mat Matter Collected 172 | 41 . . 131 Remotely . | . . . . Salvage Created . | . . . . Parts . | . . . . Haulers Intercepted . | . . . . Recyclers Shooed . | . . . . Parts Field Recycled . | . . . . Retrieved Matter . | . . . . Parts Self-Destructed . | . . . . Prevented . | . . . . Kills | -11 -10 -9 -8 ------- Run | Scr Mat Mat Mat Combat Hostiles Destroyed . | . . . . Classes Destroyed . | . . . . Best Kill Streak . | . . . . Combat Bots Only . | . . . . Max Kills in Single Turn . | . . . . Gunslinging . | . . . . Exploded . | . . . . Melee . | . . . . Uniques/NPCs Destroyed . | . . . . Combat | -11 -10 -9 -8 -------- Run | Scr Mat Mat Mat Damage Taken 935 | . . 161 774 Core 218 | . . 30 188 Absorbed by Shields . | . . . . Core Remaining (%) 97 | 100 100 92 . Volleys Fired . | . . . . Largest . | . . . . Hottest . | . . . . Shots Fired . | . . . . Gun . | . . . . Cannon . | . . . . Launcher . | . . . . Special . | . . . . Kinetic . | . . . . Thermal . | . . . . Explosive . | . . . . Electromagnetic . | . . . . Robot Hit Streak . | . . . . Robot Miss Streak . | . . . . Penetration Max . | . . . . Secondary Targets . | . . . . Shots Hit Robots . | . . . . Core Hits . | . . . . Critical Hits . | . . . . Critical Kills . | . . . . Critical Parts Destroyed . | . . . . Melee Attacks . | . . . . Impact . | . . . . Slashing . | . . . . Piercing . | . . . . Sneak Attacks . | . . . . Combat Hostiles . | . . . . Follow-up Attacks . | . . . . Damage Inflicted 4 | . . 4 . Guns . | . . . . Cannons . | . . . . Explosions . | . . . . Melee . | . . . . Ramming 4 | . . 4 . Kinetic . | . . . . Thermal . | . . . . Explosive . | . . . . Electromagnetic . | . . . . Impact . | . . . . Slashing . | . . . . Piercing . | . . . . Highest Corruption . | . . . . Average Corruption . | . . . . Corruption Purged . | . . . . Overload Shots . | . . . . Overflow Damage . | . . . . Projectiles . | . . . . Explosions . | . . . . Melee . | . . . . Knockbacks . | . . . . Impact . | . . . . Kinetic . | . . . . Secondary . | . . . . Self-Inflicted Damage 2 | . . 2 . Shots . | . . . . Rammed 1 | . . 1 . Targets Rammed 1 | . . 1 . Kicked . | . . . . Crushed . | . . . . Highest Temperature . | . . . . Average Temperature . | . . . . Received Heat Transfer 345 | . . 120 225 Siege Activations . | . . . . Robots Corrupted . | . . . . Combat Hostiles . | . . . . Parts Fried . | . . . . Impact Corruptions . | . . . . Robots Melted . | . . . . Combat Hostiles . | . . . . Parts Melted . | . . . . Heat Transferred . | . . . . Parts Sabotaged . | . . . . Parts Stolen . | . . . . Parts Stripped . | . . . . Power Chain Reactions . | . . . . Missiles Intercepted . | . . . . Alert | -11 -10 -9 -8 ------- Run | Scr Mat Mat Mat Peak Influence 61 | . 7 61 51 Average Influence 21 | . 5 30 20 Maximum Alert Level . | . . . . Low Security (%) 100 | 100 100 100 100 Level 1 . | . . . . Level 2 . | . . . . Level 3 . | . . . . Level 4 . | . . . . Level 5 . | . . . . High Security . | . . . . Max Security . | . . . . Squads Dispatched 4 | . . 2 2 Investigation 1 | . . 1 . Extermination . | . . . . Reinforcement 3 | . . 1 2 Assault . | . . . . Garrison . | . . . . Intercept . | . . . . Construction Impeded . | . . . . Haulers Reinforced . | . . . . Stealth | -11 -10 -9 -8 --------- Run | Scr Mat Mat Mat Distress Signals 4 | . . 2 2 Communications Jammed . | . . . . Distress Signals . | . . . . Times Spotted 29 | . . 9 20 Peak Tracking Total 18 | . . 4 18 Tactical Retreats 5 | . . 4 1 Traps | -11 -10 -9 -8 ------- Run | Scr Mat Mat Mat Traps Triggered 2 | . . 1 1 Indirectly . | . . . . Trap Hack Attempts . | . . . . Triggered . | . . . . Disarmed . | . . . . Reprogrammed . | . . . . Reused . | . . . . Traps Extracted . | . . . . Installed . | . . . . Triggered . | . . . . Machines | -11 -10 -9 -8 ---------- Run | Scr Mat Mat Mat Machines Disabled . | . . . . Max in Single Turn . | . . . . Machines Sabotaged . | . . . . Garrisons Compromised . | . . . . Overloaded Fab Kills . | . . . . Fab Network Shutdowns . | . . . . Hacking | -11 -10 -9 -8 --------- Run | Scr Mat Mat Mat Machines Accessed 5 | . 1 3 1 Terminals 5 | . 1 3 1 Fabricators . | . . . . Repair Stations . | . . . . Recycling Units . | . . . . Scanalyzers . | . . . . Garrison Access . | . . . . Total Hacks 9 | . 1 7 1 Successful 7 | . 1 5 1 Failed 2 | . . 2 . Catastrophic . | . . . . Database Lockouts . | . . . . Manual . | . . . . Terminals 9 | . 1 7 1 Fabricators . | . . . . Repair Stations . | . . . . Recycling Units . | . . . . Scanalyzers . | . . . . Garrison Access . | . . . . Terminal Hacks 7 | . 1 5 1 Prototype ID Bank 1 | . . 1 . Level Access Points 1 | . 1 . . Emergency Access Points 1 | . . 1 . Terminal Index 1 | . . 1 . Dispatch Records 1 | . . 1 . Security Status 1 | . . 1 . Hauler Manifests 1 | . . . 1 Fabricator Hacks . | . . . . Repair Station Hacks . | . . . . Recycling Unit Hacks . | . . . . Scanalyzer . | . . . . Garrison Access Hacks . | . . . . Unauthorized Hacks . | . . . . Terminals . | . . . . Fabricators . | . . . . Repair Stations . | . . . . Recycling Units . | . . . . Scanalyzers . | . . . . Garrison Access . | . . . . Data Cores Recovered . | . . . . Used . | . . . . Hacking Detections 3 | . . 3 . Full Trace Events 1 | . . 1 . Feedback Events . | . . . . Feedback Blocked . | . . . . Robot Schematics Acquired . | . . . . Robots Built . | . . . . Matter . | . . . . Time . | . . . . Total Robot Build Rating . | . . . . Part Schematics Acquired . | . . . . Parts Built . | . . . . Matter . | . . . . Time . | . . . . Total Part Build Rating . | . . . . Parts Repaired . | . . . . Time . | . . . . Parts Recycled . | . . . . Recycled Matter . | . . . . Retrieved Matter . | . . . . Retrieved Components . | . . . . Parts Scanalyzed . | . . . . Part Schematics Acquired . | . . . . Parts Damaged . | . . . . Bothacking | -11 -10 -9 -8 ------------ Run | Scr Mat Mat Mat Used RIF Installer . | . . . . Robots Hacked . | . . . . Non-combat . | . . . . Combat . | . . . . Robot Hacks Applied . | . . . . Relay Couplers Released . | . . . . Robots Rewired . | . . . . Allies Hacked . | . . . . Hacks Repelled . | . . . . Allies | -11 -10 -9 -8 -------- Run | Scr Mat Mat Mat Total Allies . | . . . . Largest Group . | . . . . Highest-Rated Group . | . . . . Highest-Rated Ally . | . . . . Total Orders . | . . . . Ally Attacks . | . . . . Total Damage . | . . . . Kills . | . . . . Allies Corrupted . | . . . . Allies Melted . | . . . . Intel | -11 -10 -9 -8 ------- Run | Scr Mat Mat Mat Robot Analysis Total . | . . . . Derelict Logs Recovered . | . . . . Drone Launches . | . . . . Drone Recoveries . | . . . . Exploration | -11 -10 -9 -8 ------------- Run | Scr Mat Mat Mat Turns Passed 637 | 69 74 317 177 Spaces Moved 531 | 48 58 266 159 Core 21 | 9 . . 12 Treads . | . . . . Legs 335 | 39 58 196 42 Wheels 157 | . . 70 87 Hover . | . . . . Flight 18 | . . . 18 Fastest Speed 40 | 50 120 90 40 Average Speed 109 | 118 120 112 97 Slowest Speed 150 | 150 120 120 130 Overloaded Moves . | . . . . Propulsion Burnouts . | . . . . Robots Hopped . | . . . . Cave-ins Triggered . | . . . . Exploration Rate (%) 18 | 3 20 29 23 Regions Visited 3 Branch Regions . Pre-discovered Areas . | . . . . Known Exits Taken 2 | . 1 1 . Unknown Exits Taken 1 | 1 . . . Scrap Searched . | . . . . Spaces Dug . | . . . . Terrain Destroyed . | . . . . Melee . | . . . . Projectile . | . . . . AOE . | . . . . Actions | -11 -10 -9 -8 --------- Run | Scr Mat Mat Mat Total 586 | 57 62 286 181 Wait 18 | . . 7 11 Move 528 | 47 57 265 159 Hop . | . . . . Pick Up 12 | 4 4 4 . Fast Attach 10 | 6 1 1 2 Attach 9 | . . 4 5 Detach 2 | . . 1 1 Swap . | . . . . Drop 6 | . . 3 3 Fire . | . . . . Melee . | . . . . Ram 1 | . . 1 . Kick . | . . . . Crush . | . . . . Escape Stasis . | . . . . Rewire . | . . . . Trap . | . . . . Miscellaneous . | . . . . Route ------- -11/Scrapyard -10/Materials (discovered 3 exits: *Mat x3) -9/Materials -8/Materials History --------- Turn | Location | Event 28 | -11/Scrapyard | Discovered new exit (range 16) 70 | -11/Scrapyard | Entered Materials 90 | -10/Materials | Identified exit to Materials 144 | -10/Materials | Entered another Materials area 144 | -9/Materials | Evolved 2 slots: Utility x2 313 | -9/Materials | Build established: Mutant 441 | -9/Materials | Discovered new exit (range 16) 460 | -9/Materials | Identified exit to Materials 461 | -9/Materials | Entered another Materials area 461 | -8/Materials | Evolved 2 slots: Utility x2 598 | -8/Materials | Lost 3 parts (2n1u) 638 | -8/Materials | Self-destructed Last Messages --------------- 00598_ Imp. Sensor Array destroyed. 00599_ Penetrated by Slug. 00600_ Ion Engine destroyed. 00605_ Slug penetrates Wall. 00605_ U-05 Engineer lays Concrete. 00606_ S-10 Pest destroyed. 00608_ Penetrated by Slug. 00608_ K-01 Serf collects debris. 00615_ U-05 Engineer lays Concrete. 00617_ K-01 Serf collects debris. 00625_ Slug penetrates K-01 Serf. 00626_ K-01 Serf collects debris. 00628_ Penetrated by Slug. 00629_ O-16 Technician: "IFF HANDSHAKE FAILED. SECURING TERMINAL." 00632_ W-25 Informer distress signal alerts nearby ally. 00636_ ALERT: Hostiles spotted, dispatching reinforcements to Terminal M009. 00636_ ALERT: Hostiles spotted, dispatching reinforcements to Terminal M005. 00637_ Lgt. Deuterium Engine destroyed. Map ----- +----------------------------------------------------+ | ?????????????????????????????????????????????????? | | ?????????????????????????????????????????????????? | | ?????????????????????????????????????????????????? | | ?????????????????????????????????????????????????? | | ?????????????????????????????????????????????????? | | ?????????????????????????????????????????????????? | | ?????????????????????????????????????????????????? | | ?????????????????????????????????????????????????? | | ????????????????????? ???????????????????????? | | ????????????????????# ???????????????????????? | | ????????????????????# ???????????????????????? | | ????????????????????#] ???????????????????????? | | ????????????????????# ???????????????????????? | | ????????????????????# #???????????????????????? | | ????????????????????# #???????????????????????? | | ????????????????????# #???????????????????????? | | ????????????????????# #???????????????????????? | | ?????????????####???# #???????????????????????? | | ?????????????? ??# #???????????????????????? | | ?????????????? ??# #???????????????????????? | | ????????????""" ??# #???????????????????????? | | ?????????????""" [??# #?##########????????????? | | ??????????????"" ??# #? * Y#????????????? | | ??????????????"" ??# # ! #?????????????? | | ??????????????? ??# # #?????????????? | | ???????????????? ??# @ #?????????????? | | ???????????????##/###s # """ "" #?????????????? | | ???????????????# a sr # """ """?#?????????????? | | ???????????????# ### #?""" S"???????????????? | | ???????????????# #?# s #? ???????????????? | | ???????????????+ #?#s #??######???????????????? | | ???????????????# #?# #???????????????????????? | | ???????????????# #?# #???????????????????????? | | ???????????????# #?# ???????????????????????? | | ???????????????# #?# ##??????????????????????? | | ???????????????# #?# #???????????????????????? | | ????????######## #?# #???????????????????????? | | ????????# + #?# #???????????????????????? | | ????????# # * #?# #???????????????##?##???? | | ????????# ""??# %=#?# #??????????????? ? ???? | | ????????# ????# #?# #??????????????? ???? | | ????????#??????# #?? ???????????????? T ???? | | ???????????????# #?? ???????????????? ???? | | ???????????????# #?????????????????????! |???? | | ???????????????# #?????????????????????# #???? | | ???????????????# #?????????????????????# #???? | | ???????????????# #?????????????????????/ #???? | | ???????????????# #?????????????????????# #???? | | ???????????????# #?????????????????????# #???? | | ???????????????# #?????????????????????# #???? | +----------------------------------------------------+ Best States ------------- Heat Dissipation 31 Energy Generation 14 Energy Capacity 250 Matter Stores 142 Matter Capacity 300 Sight Range 18 Robot Scan Range 13 Terrain Scan Density 10 Additional Mass Support 6 Resistance: KI 20 Resistance: TH 20 Resistance: EX 20 Resistance: EM 20 Resistance: I 20 Resistance: S 20 Resistance: P 20 Evasion (%) 42 Offensive Hacking 10 Item Schematics ----------------- None Robot Schematics ------------------ None Fabricated ------------ Nothing Alien Tech Used ----------------- None Achievements -------------- None Challenges ------------ None Game ------ Seed AssembledSurgeTerminator Manual? 0 Play Time 00:11:40 Cumulative 151.5 hours Start 2020.06.03 @ 09:37:33 End 2020.06.03 @ 09:46:14 Sessions 1 Manual Loads 0 Difficulty Adventurer Special Mode None Game No. 62 Rogue 25 Adventurer 37 Explorer 0 Win Type - Total 3 Types 3/0/0/0/0/0/0 Lore% 27 Gallery% 47 Achievement% 35 Wizard Run 0 Options --------- ASCII 0 Keyboard 0 Movement Mouse Keybinds 0 Fullscreen 2 Font 18/X11 Map View 76x50 Tactical HUD 1 Map Filters NONE Filters NONE Steam 1 RUN: af393375-2775-4036-832f-16ce9b386560